fUSD/lending_fUSD_20250716
["ID","MTS","AMOUNT","RATE_DAILY","PERIOD"]
[372494735,1752663069234,-2151.45,0.00022054,2]
[372494736,1752663069244,-967.0,0.00022054,2]
[372494737,1752663069256,-460.0,0.00022054,2]
[372494738,1752663069268,-580.169506,0.00022054,7]
[372494739,1752663069278,-460.0,0.00022054,2]
[372494740,1752663069289,-580.169506,0.00022054,7]
[372494741,1752663069300,-909.92,0.00022054,2]
[372494742,1752663069310,-580.169506,0.00022054,7]
[372494743,1752663069319,-580.169513,0.00022054,7]
[372494744,1752663069330,-460.0,0.00022054,2]
[372494745,1752663069339,-460.0,0.00022054,2]
[372494746,1752663069350,-574.66,0.00022054,2]
[372494747,1752663069361,-460.0,0.00022054,2]
[372494748,1752663069371,-18257.49,0.00022054,2]
[372494749,1752663069382,-460.0,0.00022054,2]
[372494750,1752663069394,-1366.55,0.00022054,2]
[372494751,1752663069404,-460.0,0.00022054,2]
[372494752,1752663069414,-604.49920985,0.00022054,2]
[372494753,1752663069424,-4396.18,0.00022054,2]
[372494754,1752663069433,-538.38453095,0.00022054,2]
[372494755,1752663069443,-460.0,0.00022054,2]
[372494756,1752663069453,-2712.48,0.00022054,2]
[372494757,1752663069465,-464.80158628,0.00022054,2]
[372494758,1752663069475,-530.09,0.00022054,2]
[372494759,1752663069486,-1243.92,0.00022054,2]
[372494760,1752663069497,-508.0,0.00022054,2]
[372494761,1752663069507,-1950.3,0.00022054,2]
[372494762,1752663069516,-5268.98,0.00022054,2]
[372494763,1752663069526,-558.0,0.00022054,2]
[372494764,1752663069535,-661.22,0.00022054,2]
[372494765,1752663069546,-460.0,0.00022054,2]
[372494766,1752663069556,-460.0,0.00022054,2]
[372494767,1752663069566,-802.89,0.00022054,2]
[372494768,1752663069578,-1009.57,0.00022054,2]
[372494769,1752663069589,-1047.92,0.00022054,2]
[372494770,1752663069599,-371.136054,0.00022054,7]
[372494771,1752663069609,-806.79,0.00022054,2]
[372494772,1752663069619,-548.97,0.00022054,2]
[372494773,1752663069628,-371.136054,0.00022054,7]
[372494774,1752663069637,-500.0,0.00022054,2]
[372494775,1752663069647,-371.136054,0.00022054,7]
[372494776,1752663069656,-460.0,0.00022054,2]
[372494777,1752663069666,-460.0,0.00022054,2]
[372494778,1752663069675,-1016.81,0.00022054,2]
[372494779,1752663069685,-716.51,0.00022054,2]
[372494780,1752663069694,-371.136054,0.00022054,7]
[372494781,1752663069704,-5123.0,0.00022054,2]
[372494782,1752663069714,-371.136054,0.00022054,7]
[372494783,1752663069723,-1807.77,0.00022054,2]
[372494784,1752663069733,-371.136048,0.00022054,7]
[372494785,1752663069743,-460.0,0.00022054,2]
[372494786,1752663069754,-3401.52,0.00022054,2]
[372494787,1752663069763,-460.0,0.00022054,2]
[372494788,1752663069773,-460.0,0.00022054,2]
[372494789,1752663069783,-460.0,0.00022054,2]
[372494790,1752663069793,-1090.35,0.00022054,2]
[372494791,1752663069803,-1577.99,0.00022054,2]
[372494792,1752663069813,-2180.23,0.00022054,2]
[372494793,1752663069823,-463.44185028,0.00022054,2]
[372494794,1752663069833,-539.0,0.00022054,2]
[372494795,1752663069842,-993.34,0.00022054,2]
[372494796,1752663069852,-2435.35,0.00022054,2]
[372494797,1752663069861,-460.0,0.00022054,2]
[372494798,1752663069872,-932.03,0.00022054,2]
[372494799,1752663069882,-9495.76,0.00022054,2]
[372494800,1752663069891,-6460.58,0.00022054,2]
[372494801,1752663069901,-388.10477569,0.00022054,2]
[372494802,1752663069911,-2366.57,0.00022054,2]
[372494803,1752663069921,-460.0,0.00022054,2]
[372494804,1752663069930,-635.82,0.00022054,2]
[372494805,1752663069940,-150.0,0.00022054,2]
[372494806,1752663069950,-460.0,0.00022054,2]
[372494807,1752663069960,-460.0,0.00022054,2]
[372494808,1752663069971,-460.0,0.00022054,2]
[372494809,1752663069981,-1384.4,0.00022054,2]
[372494810,1752663069991,-460.0,0.00022054,2]
[372494811,1752663070000,-460.0,0.00022054,2]
[372494812,1752663070010,-460.0,0.00022054,2]
[372494813,1752663070019,-2004.78,0.00022054,2]
[372494814,1752663070030,-3219.3,0.00022054,2]
[372494815,1752663070040,-1405.03,0.00022054,2]
[372494816,1752663070049,-460.0,0.00022054,2]
[372494817,1752663070059,-460.0,0.00022054,2]
[372494818,1752663070069,-689.97,0.00022054,2]
[372494819,1752663070079,-460.0,0.00022054,2]
[372494820,1752663070088,-660.19,0.00022054,2]
[372494821,1752663070097,-460.0,0.00022054,2]
[372494822,1752663070107,-460.0,0.00022054,2]
[372494823,1752663070116,-462.71531961,0.00022054,2]
[372494824,1752663070126,-460.0,0.00022054,2]
[372494825,1752663070135,-460.0,0.00022054,2]
[372494826,1752663070145,-500.0,0.00022054,2]
[372494827,1752663070155,-4073.22,0.00022054,2]
[372494828,1752663070164,-460.0,0.00022054,2]
[372494829,1752663070178,-829.45,0.00022054,2]
[372494830,1752663070187,-1482.8,0.00022054,2]
[372494831,1752663070196,-460.0,0.00022054,2]
[372494832,1752663070206,-248.08960097,0.00022054,2]
[372494833,1752663070216,-1224.36,0.00022054,2]
[372494834,1752663070225,-500.0,0.00022054,2]
[372494835,1752663070235,-1186.85,0.00022054,2]
[372494836,1752663070245,-571.95,0.00022054,2]
[372494837,1752663070255,-460.0,0.00022054,2]
[372494838,1752663070264,-1846.22,0.00022054,2]
[372494839,1752663070274,-151.0,0.00022054,7]
[372494840,1752663070283,-460.0,0.00022054,2]
[372494841,1752663070293,-151.0,0.00022054,7]
[372494842,1752663070302,-460.0,0.00022054,2]
[372494843,1752663070312,-2508.45,0.00022054,2]
[372494844,1752663070323,-464.72435657,0.00022054,2]
[372494845,1752663070332,-460.0,0.00022054,2]
[372494846,1752663070342,-462.47978554,0.00022054,2]
[372494847,1752663070352,-605.83,0.00022054,2]
[372494848,1752663070363,-1023.53,0.00022054,2]
[372494849,1752663070372,-598.06,0.00022054,2]
[372494850,1752663070381,-2046.51,0.00022054,2]
[372494851,1752663070391,-5496.82,0.00022054,2]
[372494852,1752663070400,-1729.36,0.00022054,2]
[372494853,1752663070410,-845.91,0.00022054,2]
[372494854,1752663070419,-460.0,0.00022054,2]
[372494855,1752663070429,-1153.38,0.00022054,2]
[372494856,1752663070439,-460.0,0.00022054,2]
[372494857,1752663070448,-150.0,0.00022054,2]
[372494858,1752663070458,-1471.4,0.00022054,2]
[372494859,1752663070469,-200.0,0.00022054,2]
[372494860,1752663070479,-460.0,0.00022054,2]
[372494861,1752663070489,-500.0,0.00022054,2]
[372494862,1752663070499,-150.59267328,0.00022054,2]
[372494863,1752663070509,-25686.63,0.00022054,2]
[372494864,1752663070519,-2265.87,0.00022054,2]
[372494865,1752663070529,-1804.24,0.00022054,2]
[372494866,1752663070538,-460.0,0.00022054,2]
[372494867,1752663070547,-460.0,0.00022054,2]
[372494868,1752663070557,-460.0,0.00022054,2]
[372494869,1752663070568,-801.55,0.00022054,2]
[372494870,1752663070577,-460.0,0.00022054,2]
[372494871,1752663070587,-667.91,0.00022054,2]
[372494872,1752663070597,-460.0,0.00022054,2]
[372494873,1752663070945,-460.0,0.00022054,2]
[372494874,1752663070959,-720.01,0.00022054,2]
[372494875,1752663070969,-460.0,0.00022054,2]
[372494876,1752663070979,-493.31647553,0.00022054,2]
[372494877,1752663070989,-460.0,0.00022054,2]
[372494878,1752663070999,-912.12,0.00022054,2]
[372494879,1752663071009,-2378.43,0.00022054,2]
[372494880,1752663071020,-1488.97,0.00022054,2]
[372494881,1752663071029,-693.6,0.00022054,2]
[372494882,1752663071039,-2336.76,0.00022054,2]
[372494883,1752663071049,-834.17,0.00022054,2]
[372494884,1752663071058,-1662.59,0.00022054,2]
[372494885,1752663071068,-568.78,0.00022054,2]
[372494886,1752663071077,-3608.17,0.00022054,2]
[372494887,1752663071087,-151.0,0.00022054,7]
[372494888,1752663071097,-578.22,0.00022054,2]
[372494889,1752663071106,-468.55,0.00022054,2]
[372494890,1752663071116,-151.0,0.00022054,7]
[372494891,1752663071126,-465.11,0.00022054,2]
[372494892,1752663071135,-590.67,0.00022054,2]
[372494893,1752663071145,-1551.69,0.00022054,2]
[372494894,1752663071155,-460.0,0.00022054,2]
[372494895,1752663071164,-722.56,0.00022054,2]
[372494896,1752663071177,-460.0,0.00022054,2]
[372494897,1752663071186,-460.0,0.00022054,2]
[372494898,1752663071196,-464.25303817,0.00022054,2]
[372494899,1752663071205,-4023.17,0.00022054,2]
[372494900,1752663071215,-517.03,0.00022054,2]
[372494901,1752663071226,-460.0,0.00022054,2]
[372494902,1752663071236,-460.0,0.00022054,2]
[372494903,1752663071246,-3644.36,0.00022054,2]
[372494904,1752663071256,-460.0,0.00022054,2]
[372494905,1752663071266,-546.65,0.00022054,2]
[372494906,1752663071276,-4710.56,0.00022054,2]
[372494907,1752663071285,-1375.33,0.00022054,2]
[372494908,1752663071295,-3437.5,0.00022054,2]
[372494909,1752663071305,-956.97,0.00022054,2]
[372494910,1752663071315,-460.0,0.00022054,2]
[372494911,1752663071325,-1086.94,0.00022054,2]
[372494912,1752663071336,-1882.13,0.00022054,2]
[372494913,1752663071346,-819.82,0.00022054,2]
[372494914,1752663071359,-533.59,0.00022054,2]
[372494915,1752663071369,-10473.68,0.00022054,2]
[372494916,1752663071380,-846.81,0.00022054,2]
[372494917,1752663071392,-460.0,0.00022054,2]
[372494918,1752663071402,-460.0,0.00022054,2]
[372494919,1752663071412,-1075.31,0.00022054,2]
[372494920,1752663071421,-10262.44,0.00022054,2]
[372494921,1752663071431,-460.0,0.00022054,2]
[372494922,1752663071442,-7641.39,0.00022054,2]
[372494923,1752663071451,-927.79,0.00022054,2]
[372494924,1752663071462,-460.0,0.00022054,2]
[372494925,1752663071472,-9009.22,0.00022054,2]
[372494926,1752663071481,-460.0,0.00022054,2]
[372494927,1752663071492,-460.0,0.00022054,2]
[372494928,1752663071502,-460.0,0.00022054,2]
[372494929,1752663071511,-460.0,0.00022054,2]
[372494930,1752663071521,-1305.47,0.00022054,2]
[372494931,1752663071530,-6402.79,0.00022054,2]
[372494932,1752663071540,-1048.05,0.00022054,2]
[372494933,1752663071550,-999.84,0.00022054,2]
[372494934,1752663071560,-1145.26,0.00022054,2]
[372494935,1752663071570,-1618.81,0.00022054,2]
[372494936,1752663071580,-1101.08,0.00022054,2]
[372494937,1752663071590,-7522.89,0.00022054,2]
[372494938,1752663071599,-1085.51,0.00022054,2]
[372494939,1752663071609,-460.0,0.00022054,2]
[372494940,1752663071619,-460.0,0.00022054,2]
[372494941,1752663071629,-985.55,0.00022054,2]
[372494942,1752663071639,-7023.53,0.00022054,2]
[372494943,1752663071649,-699.45,0.00022054,2]
[372494944,1752663071659,-4103.12,0.00022054,2]
[372494945,1752663071668,-460.0,0.00022054,2]
[372494946,1752663071678,-4907.65,0.00022054,2]
[372494947,1752663071688,-460.0,0.00022054,2]
[372494948,1752663071698,-460.0,0.00022054,2]
[372494949,1752663071708,-460.0,0.00022054,2]
[372494950,1752663071718,-587.29,0.00022054,2]
[372494951,1752663071728,-805.39,0.00022054,2]
[372494952,1752663071738,-2334.85,0.00022054,2]
[372494953,1752663071747,-460.0,0.00022054,2]
[372494954,1752663071758,-525.36907977,0.00022054,2]
[372494955,1752663071768,-1300.92,0.00022054,2]
[372494956,1752663071778,-1839.74,0.00022054,2]
[372494957,1752663071788,-7022.82,0.00022054,2]
[372494958,1752663071798,-460.0,0.00022054,2]
[372494959,1752663071808,-460.0,0.00022054,2]
[372494960,1752663071818,-460.0,0.00022054,2]
[372494961,1752663071828,-460.0,0.00022054,2]
[372494962,1752663071838,-4783.75,0.00022054,2]
[372494963,1752663071848,-241.89,0.00022054,2]
[372494964,1752663071858,-460.0,0.00022054,2]
[372494965,1752663071868,-574.7,0.00022054,2]
[372494966,1752663071878,-460.0,0.00022054,2]
[372494967,1752663071888,-11831.05,0.00022054,2]
[372494968,1752663071897,-5175.99,0.00022054,2]
[372494969,1752663071907,-1721.09,0.00022054,2]
[372494970,1752663071918,-460.0,0.00022054,2]
[372494971,1752663071928,-2063.66,0.00022054,2]
[372494972,1752663071937,-12650.62,0.00022054,2]
[372494973,1752663071947,-787.25,0.00022054,2]
[372494974,1752663071957,-609.0,0.00022054,2]
[372494975,1752663071966,-641.88,0.00022054,2]
[372494976,1752663071976,-460.0,0.00022054,2]
[372494977,1752663071986,-460.0,0.00022054,2]
[372494978,1752663071996,-2321.93,0.00022054,2]
[372494979,1752663072005,-460.0,0.00022054,2]
[372494980,1752663072015,-460.0,0.00022054,2]
[372494981,1752663072024,-647.56,0.00022054,2]
[372494982,1752663072034,-460.0,0.00022054,2]
[372494983,1752663072044,-1046.05,0.00022054,2]
[372494984,1752663072054,-462.66998264,0.00022054,2]
[372494985,1752663072064,-25853.72,0.00022054,2]
[372494986,1752663072074,-460.0,0.00022054,2]
[372494987,1752663072083,-2399.4,0.00022054,2]
[372494988,1752663072093,-1196.04,0.00022054,2]
[372494989,1752663072103,-5256.36,0.00022054,2]
[372494990,1752663072114,-570.67,0.00022054,2]
[372494991,1752663072124,-460.0,0.00022054,2]
[372494992,1752663072134,-460.0,0.00022054,2]
[372494993,1752663072143,-1199.05,0.00022054,2]
[372494994,1752663072153,-1873.93,0.00022054,2]
[372494995,1752663072163,-6048.28,0.00022054,2]
[372494996,1752663072172,-608.82,0.00022054,2]
[372494997,1752663072184,-460.0,0.00022054,2]
[372494998,1752663072193,-460.0,0.00022054,2]
[372494999,1752663072203,-460.0,0.00022054,2]
[372495000,1752663072214,-460.0,0.00022054,2]
[372495001,1752663072224,-462.57888364,0.00022054,2]
[372495002,1752663072234,-3826.55,0.00022054,2]
[372495003,1752663072243,-679.82,0.00022054,2]
[372495004,1752663072254,-460.0,0.00022054,2]
[372495005,1752663072264,-644.0,0.00022054,2]
[372495006,1752663072274,-460.0,0.00022054,2]
[372495007,1752663072283,-4984.48,0.00022054,2]
[372495008,1752663072293,-1010.1,0.00022054,2]
[372495009,1752663072303,-587.74,0.00022054,2]
[372495010,1752663072313,-2707.25,0.00022054,2]
[372495011,1752663072322,-1216.26,0.00022054,2]
[372495012,1752663072331,-2657.96,0.00022054,2]
[372495013,1752663072341,-2675.67,0.00022054,2]
[372495014,1752663072351,-226.43554,0.00022054,7]
[372495015,1752663072361,-226.43554,0.00022054,7]
[372495016,1752663072370,-460.0,0.00022054,2]
[372495017,1752663072379,-1531.63,0.00022054,2]
[372495018,1752663072389,-460.0,0.00022054,2]
[372495019,1752663072398,-460.0,0.00022054,2]
[372495020,1752663072407,-427.85993304,0.00022054,2]
[372495021,1752663072417,-465.61578846,0.00022054,2]
[372495022,1752663072426,-344.00699175,0.00022054,2]
[372495023,1752663072435,-807.97,0.00022054,2]
[372495024,1752663072444,-460.0,0.00022054,2]
[372495025,1752663072454,-6155.9,0.00022054,2]
[372495026,1752663072463,-10398.73,0.00022054,2]
[372495027,1752663072473,-2892.99,0.00022054,2]
[372495028,1752663072482,-226.43554,0.00022054,7]
[372495029,1752663072491,-226.435533,0.00022054,7]
[372495030,1752663072500,-460.0,0.00022054,2]
[372495031,1752663072509,-460.0,0.00022054,2]
[372495032,1752663072519,-3663.1,0.00022054,2]
[372495033,1752663072528,-783.37,0.00022054,2]
[372495034,1752663072537,-2417.79,0.00022054,2]
[372495035,1752663072547,-1645.27,0.00022054,2]
[372495036,1752663072557,-5760.76,0.00022054,2]
[372495037,1752663072566,-460.0,0.00022054,2]
[372495038,1752663072576,-1156.71,0.00022054,2]
[372495039,1752663072585,-2977.53,0.00022054,2]
[372495040,1752663072595,-4994.77,0.00022054,2]
[372495041,1752663072604,-2707.06,0.00022054,2]
[372495042,1752663072614,-828.48,0.00022054,2]
[372495043,1752663072623,-1737.41,0.00022054,2]
[372495044,1752663072632,-697.34,0.00022054,2]
[372495045,1752663072642,-1860.1,0.00022054,2]
[372495046,1752663072652,-618.42,0.00022054,2]
[372495047,1752663072661,-3082.79,0.00022054,2]
[372495048,1752663072671,-460.0,0.00022054,2]
[372495049,1752663072681,-763.37,0.00022054,2]
[372495050,1752663072690,-460.0,0.00022054,2]
[372495051,1752663072699,-5360.04,0.00022054,2]
[372495052,1752663072709,-1544.88,0.00022054,2]
[372495053,1752663072718,-460.0,0.00022054,2]
[372495054,1752663072728,-532.67,0.00022054,2]
[372495055,1752663072737,-566.67,0.00022054,2]
[372495056,1752663072747,-518.40450555,0.00022054,2]
[372495057,1752663072756,-1351.27,0.00022054,2]
[372495058,1752663072766,-6960.91,0.00022054,2]
[372495059,1752663072776,-1854.73,0.00022054,2]
[372495060,1752663072785,-1871.79,0.00022054,2]
[372495061,1752663072795,-460.0,0.00022054,2]
[372495062,1752663072805,-498.31,0.00022054,2]
[372495063,1752663072814,-3727.42,0.00022054,2]
[372495064,1752663072824,-935.71,0.00022054,2]
[372495065,1752663072834,-461.0117473,0.00022054,2]
[372495066,1752663072843,-2952.62,0.00022054,2]
[372495067,1752663072853,-460.0,0.00022054,2]
[372495068,1752663072863,-1210.46,0.00022054,2]
[372495069,1752663072873,-460.0,0.00022054,2]
[372495070,1752663072882,-4520.63,0.00022054,2]
[372495071,1752663072893,-1354.22,0.00022054,2]
[372495072,1752663072903,-647.88,0.00022054,2]
[372495073,1752663072912,-460.0,0.00022054,2]
[372495074,1752663072922,-1674.69,0.00022054,2]
[372495075,1752663072931,-460.0,0.00022054,2]
[372495076,1752663072940,-1807.76,0.00022054,2]
[372495077,1752663072950,-544.05,0.00022054,2]
[372495078,1752663072959,-1562.68,0.00022054,2]
[372495079,1752663072969,-804.49,0.00022054,2]
[372495080,1752663072979,-463.60818214,0.00022054,2]
[372495081,1752663072988,-460.0,0.00022054,2]
[372495082,1752663072998,-460.0,0.00022054,2]
[372495083,1752663073007,-4930.79,0.00022054,2]
[372495084,1752663073017,-619.88,0.00022054,2]
[372495085,1752663073026,-460.0,0.00022054,2]
[372495086,1752663073036,-460.0,0.00022054,2]
[372495087,1752663073045,-2967.28,0.00022054,2]
[372495088,1752663073056,-460.0,0.00022054,2]
[372495089,1752663073066,-517.2331191,0.00022054,2]
[372495090,1752663073075,-1331.59,0.00022054,2]
[372495091,1752663073084,-1756.27,0.00022054,2]
[372495092,1752663073094,-460.0,0.00022054,2]
[372495093,1752663073103,-3471.77,0.00022054,2]
[372495094,1752663073113,-1372.2,0.00022054,2]
[372495095,1752663073123,-2884.75,0.00022054,2]
[372495096,1752663073132,-4338.23,0.00022054,2]
[372495097,1752663073141,-1048.9,0.00022054,2]
[372495098,1752663073151,-1304.13,0.00022054,2]
[372495099,1752663073161,-460.0,0.00022054,2]
[372495100,1752663073172,-2011.92,0.00022054,2]
[372495101,1752663073183,-460.0,0.00022054,2]
[372495102,1752663073192,-5916.53,0.00022054,2]
[372495103,1752663073202,-460.0,0.00022054,2]
[372495104,1752663073211,-861.69,0.00022054,2]
[372495105,1752663073222,-589.94,0.00022054,2]
[372495106,1752663073231,-460.0,0.00022054,2]
[372495107,1752663073241,-771.65,0.00022054,2]
[372495108,1752663073254,-469.09,0.00022054,2]
[372495109,1752663073265,-460.0,0.00022054,2]
[372495110,1752663073274,-18520.14,0.00022054,2]
[372495111,1752663073284,-460.0,0.00022054,2]
[372495112,1752663073294,-2080.47,0.00022054,2]
[372495113,1752663073304,-1000.0,0.00022054,2]
[372495114,1752663073314,-1896.91,0.00022054,2]
[372495115,1752663073323,-1267.95,0.00022054,2]
[372495116,1752663073336,-6378.4,0.00022054,2]
[372495117,1752663073347,-1000.0,0.00022054,2]
[372495118,1752663073356,-460.0,0.00022054,2]
[372495119,1752663073365,-460.0,0.00022054,2]
[372495120,1752663073374,-460.0,0.00022054,2]
[372495121,1752663073384,-624.77,0.00022054,2]
[372495122,1752663073393,-6594.98,0.00022054,2]
[372495123,1752663073403,-1113.8,0.00022054,2]
[372495124,1752663073413,-4665.3,0.00022054,2]
[372495125,1752663073422,-9546.24,0.00022054,2]
[372495126,1752663073431,-4540.32,0.00022054,2]
[372495127,1752663073441,-460.0,0.00022054,2]
[372495128,1752663073450,-460.0,0.00022054,2]
[372495129,1752663073460,-4658.6,0.00022054,2]
[372495130,1752663073469,-460.0,0.00022054,2]
[372495131,1752663073479,-460.0,0.00022054,2]
[372495132,1752663073489,-575.28,0.00022054,2]
[372495133,1752663073498,-1746.59,0.00022054,2]
[372495134,1752663073508,-2605.38,0.00022054,2]
[372495135,1752663073518,-460.0,0.00022054,2]
[372495136,1752663073527,-484.92,0.00022054,2]
[372495137,1752663073537,-460.0,0.00022054,2]
[372495138,1752663073547,-2501.59,0.00022054,2]
[372495139,1752663073556,-7774.07,0.00022054,2]
[372495140,1752663073566,-570.76,0.00022054,2]
[372495141,1752663073576,-460.0,0.00022054,2]
[372495142,1752663073588,-2763.84,0.00022054,2]
[372495143,1752663073598,-460.0,0.00022054,2]
[372495144,1752663073609,-5927.89,0.00022054,2]
[372495145,1752663073624,-3322.94,0.00022054,2]
[372495146,1752663073634,-460.0,0.00022054,2]
[372495147,1752663073643,-460.0,0.00022054,2]
[372495148,1752663073652,-460.0,0.00022054,2]
[372495149,1752663073662,-1367.25,0.00022054,2]
[372495150,1752663073672,-7494.33,0.00022054,2]
[372495151,1752663073682,-1011.46,0.00022054,2]
[372495152,1752663073691,-16963.12,0.00022054,2]
[372495153,1752663073700,-460.0,0.00022054,2]
[372495154,1752663073709,-21344.53,0.00022054,2]
[372495155,1752663073718,-220.02074381,0.00022054,2]
[372495156,1752663073727,-2065.11,0.00022054,2]
[372495157,1752663073737,-5953.02,0.00022054,2]
[372495158,1752663073746,-3212.42,0.00022054,2]
[372495159,1752663073755,-2587.67,0.00022054,2]
[372495160,1752663073765,-1014.23,0.00022054,2]
[372495161,1752663073775,-5650.16,0.00022054,2]
[372495162,1752663073786,-476.32,0.00022054,2]
[372495163,1752663073796,-4486.27,0.00022054,2]
[372495164,1752663073806,-5415.43,0.00022054,2]
[372495165,1752663073815,-460.0,0.00022054,2]
[372495166,1752663073825,-460.0,0.00022054,2]
[372495167,1752663073834,-1538.9,0.00022054,2]
[372495168,1752663073846,-635.25,0.00022054,2]
[372495169,1752663073855,-2685.11,0.00022054,2]
[372495170,1752663073866,-2744.51,0.00022054,2]
[372495171,1752663073875,-1047.77,0.00022054,2]
[372495172,1752663073884,-460.0,0.00022054,2]
[372495173,1752663073894,-1189.82,0.00022054,2]
[372495174,1752663073903,-802.61,0.00022054,2]
[372495175,1752663073912,-460.0,0.00022054,2]
[372495176,1752663073922,-504.66,0.00022054,2]
[372495177,1752663073931,-1356.57,0.00022054,2]
[372495178,1752663073940,-573.37,0.00022054,2]
[372495179,1752663073949,-460.0,0.00022054,2]
[372495180,1752663073959,-8020.77,0.00022054,2]
[372495181,1752663073968,-5279.75,0.00022054,2]
[372495182,1752663073977,-460.0,0.00022054,2]
[372495183,1752663073987,-1204.94,0.00022054,2]
[372495184,1752663073997,-3572.47,0.00022054,2]
[372495185,1752663074006,-460.0,0.00022054,2]
[372495186,1752663074015,-150.0,0.00022054,2]
[372495187,1752663074025,-32484.29,0.00022054,2]
[372495188,1752663074035,-676.02,0.00022054,2]
[372495189,1752663074044,-1007.81,0.00022054,2]
[372495190,1752663074054,-19195.94,0.00022054,2]
[372495191,1752663074063,-460.0,0.00022054,2]
[372495192,1752663074073,-460.0,0.00022054,2]
[372495193,1752663074083,-150.0,0.00022054,2]
[372495194,1752663074092,-1061.14,0.00022054,2]
[372495195,1752663074101,-684.08,0.00022054,2]
[372495196,1752663074111,-14730.83,0.00022054,2]
[372495197,1752663074121,-543.0,0.00022054,2]
[372495198,1752663074130,-3566.5,0.00022054,2]
[372495199,1752663074139,-3262.8,0.00022054,2]
[372495200,1752663074150,-628.29,0.00022054,2]
[372495201,1752663074160,-460.0,0.00022054,2]
[372495202,1752663074170,-464.73095533,0.00022054,2]
[372495203,1752663074182,-460.77137677,0.00022054,2]
[372495204,1752663074191,-612.3,0.00022054,2]
[372495205,1752663074201,-460.0,0.00022054,2]
[372495206,1752663074210,-1692.42,0.00022054,2]
[372495207,1752663074222,-1225.77,0.00022054,2]
[372495208,1752663074231,-22442.02,0.00022054,2]
[372495209,1752663074241,-1745.31,0.00022054,2]
[372495210,1752663074255,-5682.68,0.00022054,2]
[372495211,1752663074266,-460.0,0.00022054,2]
[372495212,1752663074276,-460.0,0.00022054,2]
[372495213,1752663074286,-460.0,0.00022054,2]
[372495214,1752663074295,-460.0,0.00022054,2]
[372495215,1752663074305,-3509.68,0.00022054,2]
[372495216,1752663074314,-686.39,0.00022054,2]
[372495217,1752663074324,-1807.34,0.00022054,2]
[372495218,1752663074334,-4110.38,0.00022054,2]
[372495219,1752663074343,-460.0,0.00022054,2]
[372495220,1752663074353,-1598.24,0.00022054,2]
[372495221,1752663074364,-460.0,0.00022054,2]
[372495222,1752663074374,-4959.45,0.00022054,2]
[372495223,1752663074383,-949.55,0.00022054,2]
[372495224,1752663074393,-1841.85,0.00022054,2]
[372495225,1752663074402,-460.0,0.00022054,2]
[372495226,1752663074412,-2472.8,0.00022054,2]
[372495227,1752663074421,-460.0,0.00022054,2]
[372495228,1752663074430,-460.0,0.00022054,2]
[372495229,1752663074441,-3547.98,0.00022054,2]
[372495230,1752663074450,-58694.54,0.00022054,2]
[372495231,1752663074460,-603.39,0.00022054,2]
[372495232,1752663074471,-2993.43,0.00022054,2]
[372495233,1752663074480,-1447.83,0.00022054,2]
[372495234,1752663074491,-5628.71,0.00022054,2]